[Event "Early-Titled-Tuesday-Blitz-March-26-2024"]
[Site "Chess.com"]
[Date "2024.03.26"]
[Round "6"]
[White "wild3000"]
[Black "Shuvalov"]
[Result "0-1"]
[WhiteElo "2456"]
[BlackElo "2607"]
[TimeControl "180+1"]
[EndTime "9:02:14 PDT"]
[Termination "Shuvalov won by resignation"]

1. d4 {[%clk 0:02:59.3]} 1... Nf6 {[%clk 0:02:59.1]} 2. Nf3 {[%clk 0:03:00.2]}
2... g6 {[%clk 0:02:59.1]} 3. g3 {[%clk 0:03:00.5]} 3... Bg7 {[%clk 0:02:58.9]}
4. Bg2 {[%clk 0:03:01.4]} 4... O-O {[%clk 0:02:59.1]} 5. O-O {[%clk 0:03:02]}
5... d5 {[%clk 0:02:58.5]} 6. b3 {[%clk 0:03:00.6]} 6... c5 {[%clk 0:02:56.9]}
7. e3 {[%clk 0:02:59.5]} 7... Ne4 {[%clk 0:02:54.3]} 8. Bb2 {[%clk 0:02:58.7]}
8... Nc6 {[%clk 0:02:53.8]} 9. Nbd2 {[%clk 0:02:53.1]} 9... Bg4 {[%clk 0:02:53]}
10. Nxe4 {[%clk 0:02:38.2]} 10... dxe4 {[%clk 0:02:52.5]} 11. c3 {[%clk
0:02:14.5]} 11... exf3 {[%clk 0:02:51]} 12. Bxf3 {[%clk 0:02:15.4]} 12... Bxf3
{[%clk 0:02:50.6]} 13. Qxf3 {[%clk 0:02:16.3]} 13... cxd4 {[%clk 0:02:50.7]} 14.
exd4 {[%clk 0:02:14.6]} 14... e5 {[%clk 0:02:48.1]} 15. d5 {[%clk 0:02:11.4]}
15... Ne7 {[%clk 0:02:46.7]} 16. Rfd1 {[%clk 0:02:09.3]} 16... f5 {[%clk
0:02:44.5]} 17. d6 {[%clk 0:02:01.7]} 17... Nc6 {[%clk 0:02:40]} 18. Qd5+ {[%clk
0:02:01.8]} 18... Kh8 {[%clk 0:02:39.7]} 19. c4 {[%clk 0:02:01.1]} 19... Qd7
{[%clk 0:02:37.4]} 20. c5 {[%clk 0:01:59.7]} 20... Rae8 {[%clk 0:02:34.5]} 21.
a3 {[%clk 0:01:59]} 21... a5 {[%clk 0:02:33.6]} 22. Rab1 {[%clk 0:01:56.7]}
22... f4 {[%clk 0:02:29.8]} 23. Bc3 {[%clk 0:01:44.2]} 23... f3 {[%clk
0:02:27.6]} 24. Qc4 {[%clk 0:01:38.1]} 24... Nd4 {[%clk 0:02:20.7]} 25. Bxd4
{[%clk 0:01:25.4]} 25... exd4 {[%clk 0:02:21.6]} 26. Re1 {[%clk 0:01:09.9]}
26... Re2 {[%clk 0:02:03.7]} 27. Kh1 {[%clk 0:00:35.3]} 27... Qh3 {[%clk
0:02:00.7]} 0-1

[Event "Early-Titled-Tuesday-Blitz-March-26-2024"]
[Site "Chess.com"]
[Date "2024.03.26"]
[Round "6"]
[White "toog"]
[Black "Davidalhesa2007"]
[Result "1-0"]
[WhiteElo "2626"]
[BlackElo "1870"]
[TimeControl "180+1"]
[EndTime "9:02:21 PDT"]
[Termination "toog won by checkmate"]

1. d4 {[%clk 0:03:00.9]} 1... Nf6 {[%clk 0:01:59.6]} 2. Nf3 {[%clk 0:02:59.3]}
2... d5 {[%clk 0:01:59.5]} 3. Bf4 {[%clk 0:02:58.9]} 3... e6 {[%clk 0:01:59.9]}
4. e3 {[%clk 0:02:58.4]} 4... c5 {[%clk 0:01:59.6]} 5. Nbd2 {[%clk 0:02:57.3]}
5... Nc6 {[%clk 0:01:59.9]} 6. c3 {[%clk 0:02:57.1]} 6... Bd6 {[%clk 0:02:00.4]}
7. Bg3 {[%clk 0:02:45.2]} 7... cxd4 {[%clk 0:01:58]} 8. exd4 {[%clk 0:02:44.5]}
8... O-O {[%clk 0:01:58.6]} 9. Bd3 {[%clk 0:02:44.2]} 9... b6 {[%clk 0:01:57.2]}
10. Qe2 {[%clk 0:02:40.5]} 10... a5 {[%clk 0:01:54.7]} 11. Ne5 {[%clk 0:02:34]}
11... Qc7 {[%clk 0:01:52.4]} 12. O-O {[%clk 0:02:27.5]} 12... Nd7 {[%clk
0:01:49.6]} 13. f4 {[%clk 0:02:23.6]} 13... Ndxe5 {[%clk 0:01:16.5]} 14. fxe5
{[%clk 0:02:22.1]} 14... Be7 {[%clk 0:01:17]} 15. Nf3 {[%clk 0:02:20.9]} 15...
Qd8 {[%clk 0:01:13.8]} 16. Rf2 {[%clk 0:02:14.7]} 16... f6 {[%clk 0:00:54.4]}
17. exf6 {[%clk 0:02:13.8]} 17... Bxf6 {[%clk 0:00:55.3]} 18. Raf1 {[%clk
0:02:12.4]} 18... Kh8 {[%clk 0:00:46.5]} 19. Ne5 {[%clk 0:02:10.7]} 19... Qe8
{[%clk 0:00:24.1]} 20. Nxc6 {[%clk 0:02:05.3]} 20... Qxc6 {[%clk 0:00:23.6]} 21.
Qh5 {[%clk 0:02:05.8]} 21... Ba6 {[%clk 0:00:02.4]} 22. Qxh7# {[%clk 0:02:05.1]}
1-0

[Event "Early-Titled-Tuesday-Blitz-March-26-2024"]
[Site "Chess.com"]
[Date "2024.03.26"]
[Round "6"]
[White "ragnaroek66"]
[Black "flawian2008"]
[Result "0-1"]
[WhiteElo "2513"]
[BlackElo "2405"]
[TimeControl "180+1"]
[EndTime "9:02:23 PDT"]
[Termination "flawian2008 won by resignation"]

1. d4 {[%clk 0:03:00.4]} 1... Nf6 {[%clk 0:03:00.6]} 2. c4 {[%clk 0:03:00.4]}
2... c5 {[%clk 0:03:01.2]} 3. d5 {[%clk 0:03:00.6]} 3... b5 {[%clk 0:03:01.8]}
4. cxb5 {[%clk 0:03:01.5]} 4... a6 {[%clk 0:03:02.1]} 5. bxa6 {[%clk 0:03:02.4]}
5... g6 {[%clk 0:03:02.6]} 6. Nc3 {[%clk 0:03:03]} 6... Bg7 {[%clk 0:03:03.2]}
7. e4 {[%clk 0:03:03.6]} 7... O-O {[%clk 0:03:03.8]} 8. a7 {[%clk 0:03:03.6]}
8... Rxa7 {[%clk 0:03:04.4]} 9. Nf3 {[%clk 0:03:03.9]} 9... e6 {[%clk
0:03:04.5]} 10. Be2 {[%clk 0:03:03.9]} 10... exd5 {[%clk 0:03:04.3]} 11. exd5
{[%clk 0:03:04.8]} 11... d6 {[%clk 0:03:04.9]} 12. O-O {[%clk 0:03:00.9]} 12...
Na6 {[%clk 0:03:05.4]} 13. Nb5 {[%clk 0:02:58.8]} 13... Rd7 {[%clk 0:03:05.8]}
14. Bc4 {[%clk 0:02:53.3]} 14... Bb7 {[%clk 0:03:06]} 15. Bf4 {[%clk 0:02:46.9]}
15... Nb4 {[%clk 0:03:04.8]} 16. Bg5 {[%clk 0:02:29.5]} 16... Qa8 {[%clk
0:03:03.2]} 17. Bxf6 {[%clk 0:02:13.5]} 17... Bxf6 {[%clk 0:03:04.1]} 18. Nc3
{[%clk 0:02:14]} 18... Bxc3 {[%clk 0:02:40.3]} 19. bxc3 {[%clk 0:02:14.9]} 19...
Nxd5 {[%clk 0:02:41.1]} 20. Ng5 {[%clk 0:02:00.5]} 20... Nxc3 {[%clk 0:02:37.9]}
21. Qg4 {[%clk 0:01:52.1]} 21... Qd8 {[%clk 0:02:20.9]} 22. Qh4 {[%clk
0:01:36.5]} 22... h5 {[%clk 0:02:16.1]} 23. Qg3 {[%clk 0:01:22.6]} 23... d5
{[%clk 0:02:14.3]} 24. Bd3 {[%clk 0:01:07.7]} 24... c4 {[%clk 0:02:03.4]} 25.
Rac1 {[%clk 0:01:07.4]} 25... Nxa2 {[%clk 0:01:54.7]} 26. Ra1 {[%clk 0:01:03.4]}
26... Nc3 {[%clk 0:01:54.8]} 27. Rfc1 {[%clk 0:01:01.5]} 27... Qf6 {[%clk
0:01:54.8]} 28. Bxc4 {[%clk 0:00:48.9]} 28... dxc4 {[%clk 0:01:48.9]} 29. Rxc3
{[%clk 0:00:48.8]} 29... Rd3 {[%clk 0:01:44.8]} 0-1

[Event "Early-Titled-Tuesday-Blitz-March-26-2024"]
[Site "Chess.com"]
[Date "2024.03.26"]
[Round "6"]
[White "Shodikulov_Jamshid1990"]
[Black "DinaBelenkaya"]
[Result "0-1"]
[WhiteElo "2254"]
[BlackElo "2481"]
[TimeControl "180+1"]
[EndTime "9:02:26 PDT"]
[Termination "DinaBelenkaya won by resignation"]

1. e4 {[%clk 0:02:59.4]} 1... c6 {[%clk 0:02:53.9]} 2. d4 {[%clk 0:02:49]} 2...
d5 {[%clk 0:02:52.4]} 3. Nc3 {[%clk 0:02:46.9]} 3... dxe4 {[%clk 0:02:19.1]} 4.
Nxe4 {[%clk 0:02:47.8]} 4... Nf6 {[%clk 0:02:19.4]} 5. Ng5 {[%clk 0:02:44.9]}
5... Bf5 {[%clk 0:02:18.4]} 6. Bc4 {[%clk 0:02:42.7]} 6... e6 {[%clk 0:02:18.6]}
7. Ne2 {[%clk 0:02:42.4]} 7... h6 {[%clk 0:02:18.5]} 8. Nf3 {[%clk 0:02:41.6]}
8... Nbd7 {[%clk 0:02:15.2]} 9. Ng3 {[%clk 0:02:40]} 9... Bg6 {[%clk 0:02:14.9]}
10. O-O {[%clk 0:02:39]} 10... Bd6 {[%clk 0:02:14.7]} 11. Re1 {[%clk 0:02:35.6]}
11... O-O {[%clk 0:02:13.8]} 12. a4 {[%clk 0:02:29.4]} 12... Qc7 {[%clk
0:02:13.3]} 13. Qe2 {[%clk 0:02:21.9]} 13... Nb6 {[%clk 0:02:12.4]} 14. Bb3
{[%clk 0:02:18.9]} 14... Nbd5 {[%clk 0:02:11.2]} 15. Ne5 {[%clk 0:02:19.4]}
15... Bh7 {[%clk 0:02:04.3]} 16. c4 {[%clk 0:02:18.6]} 16... Nb4 {[%clk
0:02:04.4]} 17. Bd2 {[%clk 0:02:09.9]} 17... a5 {[%clk 0:02:03.9]} 18. Bc3
{[%clk 0:02:08.3]} 18... Bxe5 {[%clk 0:02:00.5]} 19. dxe5 {[%clk 0:02:08.1]}
19... Nd7 {[%clk 0:02:00.5]} 20. Ne4 {[%clk 0:02:01.8]} 20... Bxe4 {[%clk
0:01:57.6]} 21. Qxe4 {[%clk 0:02:01.4]} 21... Nc5 {[%clk 0:01:58.4]} 22. Qe3
{[%clk 0:01:58.5]} 22... Nxb3 {[%clk 0:01:55.1]} 23. Bxb4 {[%clk 0:01:59]} 23...
Nxa1 {[%clk 0:01:53.3]} 24. Bxf8 {[%clk 0:01:58.8]} 24... Nc2 {[%clk 0:01:53.5]}
25. Bd6 {[%clk 0:01:52.9]} 25... Qd8 {[%clk 0:01:40.1]} 26. Qd2 {[%clk
0:01:47.5]} 26... Nxe1 {[%clk 0:01:39.5]} 27. Qxe1 {[%clk 0:01:48.4]} 27... Qb6
{[%clk 0:01:38.5]} 28. Qd2 {[%clk 0:01:46.4]} 28... Qb3 {[%clk 0:01:35.6]} 29.
h4 {[%clk 0:01:44.1]} 29... Qxc4 {[%clk 0:01:34.7]} 30. h5 {[%clk 0:01:38.1]}
30... Qxa4 {[%clk 0:01:33.9]} 31. Be7 {[%clk 0:01:36.7]} 31... Qe4 {[%clk
0:01:26.7]} 32. Qc3 {[%clk 0:01:31]} 32... a4 {[%clk 0:01:22.4]} 33. Qg3 {[%clk
0:01:29.5]} 33... Qb1+ {[%clk 0:01:18.4]} 34. Kh2 {[%clk 0:01:29.3]} 34... Qf5
{[%clk 0:01:19.3]} 35. Bf6 {[%clk 0:01:25.9]} 35... Qxh5+ {[%clk 0:01:16.7]} 36.
Kg1 {[%clk 0:01:25.6]} 36... Qg6 {[%clk 0:01:15.3]} 0-1

[Event "Early-Titled-Tuesday-Blitz-March-26-2024"]
[Site "Chess.com"]
[Date "2024.03.26"]
[Round "6"]
[White "kyuotbi"]
[Black "ChessSwole"]
[Result "0-1"]
[WhiteElo "2288"]
[BlackElo "2677"]
[TimeControl "180+1"]
[EndTime "9:02:35 PDT"]
[Termination "ChessSwole won by resignation"]

1. e4 {[%clk 0:03:00.9]} 1... d5 {[%clk 0:02:58.6]} 2. exd5 {[%clk 0:03:00.3]}
2... Qxd5 {[%clk 0:02:59.5]} 3. Nc3 {[%clk 0:02:58.5]} 3... Qd8 {[%clk
0:02:59.7]} 4. d4 {[%clk 0:02:58.5]} 4... Nf6 {[%clk 0:02:59.7]} 5. Nf3 {[%clk
0:02:57.9]} 5... g6 {[%clk 0:03:00.3]} 6. Be2 {[%clk 0:02:58.1]} 6... Bg7 {[%clk
0:03:00.6]} 7. O-O {[%clk 0:02:58.2]} 7... O-O {[%clk 0:03:00.9]} 8. Be3 {[%clk
0:02:57.3]} 8... Nc6 {[%clk 0:02:54.8]} 9. Qd2 {[%clk 0:02:48.4]} 9... b6 {[%clk
0:02:34.5]} 10. d5 {[%clk 0:02:43.9]} 10... Nb4 {[%clk 0:02:34]} 11. Bc4 {[%clk
0:02:38.2]} 11... Bb7 {[%clk 0:02:29.2]} 12. Rad1 {[%clk 0:02:37.1]} 12... c6
{[%clk 0:02:27.1]} 13. dxc6 {[%clk 0:02:15.5]} 13... Nxc6 {[%clk 0:02:28]} 14.
Qe2 {[%clk 0:02:14.1]} 14... Qc8 {[%clk 0:02:26.2]} 15. Bb3 {[%clk 0:02:06.4]}
15... Na5 {[%clk 0:02:20.7]} 16. Nd4 {[%clk 0:02:00.5]} 16... Nxb3 {[%clk
0:02:18.1]} 17. axb3 {[%clk 0:01:58.5]} 17... Rd8 {[%clk 0:02:15]} 18. Bf4
{[%clk 0:01:54.3]} 18... Nd5 {[%clk 0:02:10.3]} 19. Nxd5 {[%clk 0:01:50.8]}
19... Rxd5 {[%clk 0:02:11.2]} 20. Nf3 {[%clk 0:01:45.9]} 20... Rf5 {[%clk
0:02:05.9]} 21. Bg3 {[%clk 0:01:34.3]} 21... e6 {[%clk 0:01:50.2]} 22. Nd4
{[%clk 0:01:29.6]} 22... Rd5 {[%clk 0:01:44.1]} 23. Nb5 {[%clk 0:01:24.7]} 23...
Qc6 {[%clk 0:01:42.7]} 24. c4 {[%clk 0:01:23.2]} 24... Rxb5 {[%clk 0:01:41.5]}
25. f3 {[%clk 0:01:18.9]} 25... Rxb3 {[%clk 0:01:39.7]} 26. Rd6 {[%clk
0:01:17.4]} 26... Qc5+ {[%clk 0:01:39.7]} 27. Kh1 {[%clk 0:01:16.7]} 27... Rxb2
{[%clk 0:01:38.2]} 28. Qd3 {[%clk 0:01:16.1]} 28... Bf6 {[%clk 0:01:32.2]} 29.
Rd1 {[%clk 0:01:12.1]} 29... Qf5 {[%clk 0:01:28.3]} 30. Qe3 {[%clk 0:01:04.7]}
30... Rb1 {[%clk 0:01:18.8]} 0-1

[Event "Early-Titled-Tuesday-Blitz-March-26-2024"]
[Site "Chess.com"]
[Date "2024.03.26"]
[Round "6"]
[White "Dewarfd"]
[Black "shirovin"]
[Result "1-0"]
[WhiteElo "2156"]
[BlackElo "2041"]
[TimeControl "180+1"]
[EndTime "9:02:47 PDT"]
[Termination "Dewarfd won by resignation"]

1. c4 {[%clk 0:02:59.8]} 1... e5 {[%clk 0:02:58.9]} 2. Nc3 {[%clk 0:02:59]} 2...
Nc6 {[%clk 0:02:59.5]} 3. g3 {[%clk 0:02:58.3]} 3... Bc5 {[%clk 0:03:00]} 4. Bg2
{[%clk 0:02:58]} 4... a5 {[%clk 0:02:59.5]} 5. e4 {[%clk 0:02:58]} 5... d6
{[%clk 0:02:59.1]} 6. Nge2 {[%clk 0:02:56.8]} 6... Nge7 {[%clk 0:02:56.4]} 7.
O-O {[%clk 0:02:56.8]} 7... Be6 {[%clk 0:02:56.8]} 8. Nd5 {[%clk 0:02:54.4]}
8... h5 {[%clk 0:02:44.5]} 9. h4 {[%clk 0:02:42.5]} 9... g5 {[%clk 0:02:43.3]}
10. d4 {[%clk 0:02:32.5]} 10... Nxd4 {[%clk 0:02:38.5]} 11. Bxg5 {[%clk
0:02:22.8]} 11... Bxd5 {[%clk 0:02:37.7]} 12. cxd5 {[%clk 0:02:16.4]} 12... Qd7
{[%clk 0:02:36.8]} 13. Nxd4 {[%clk 0:02:11.3]} 13... Bxd4 {[%clk 0:02:35.9]} 14.
Bf6 {[%clk 0:01:50.8]} 14... Rg8 {[%clk 0:02:34]} 15. Qxh5 {[%clk 0:01:46]}
15... O-O-O {[%clk 0:02:29.3]} 16. Rac1 {[%clk 0:01:42.9]} 16... Rxg3 {[%clk
0:02:20.1]} 17. Kh2 {[%clk 0:01:38.5]} 17... Rg6 {[%clk 0:02:14.7]} 18. Bh3
{[%clk 0:01:32.7]} 18... Rdg8 {[%clk 0:01:53.8]} 19. Bxd7+ {[%clk 0:01:27.8]}
19... Kxd7 {[%clk 0:01:54.3]} 20. Bxe7 {[%clk 0:01:28]} 20... Kxe7 {[%clk
0:01:53.8]} 21. Rg1 {[%clk 0:01:24.4]} 21... Bxf2 {[%clk 0:01:49.5]} 22. Rxg6
{[%clk 0:01:23.1]} 22... Rxg6 {[%clk 0:01:48.8]} 23. Rf1 {[%clk 0:01:19.3]}
23... Bg3+ {[%clk 0:01:47.2]} 24. Kh1 {[%clk 0:00:50.2]} 24... Bf4 {[%clk
0:01:42.8]} 25. Qf5 {[%clk 0:00:38.9]} 25... Rg3 {[%clk 0:01:38.4]} 26. h5
{[%clk 0:00:27.7]} 26... Rg5 {[%clk 0:01:36.5]} 27. Rxf4 {[%clk 0:00:27.1]}
27... exf4 {[%clk 0:01:33.3]} 28. Qxg5+ {[%clk 0:00:26.9]} 1-0

[Event "Early-Titled-Tuesday-Blitz-March-26-2024"]
[Site "Chess.com"]
[Date "2024.03.26"]
[Round "6"]
[White "artooon"]
[Black "ActorXu"]
[Result "1/2-1/2"]
[WhiteElo "3022"]
[BlackElo "2861"]
[TimeControl "180+1"]
[EndTime "9:02:49 PDT"]
[Termination "Game drawn by repetition"]

1. e4 {[%clk 0:03:00.9]} 1... e5 {[%clk 0:03:00.1]} 2. Nf3 {[%clk 0:03:01]} 2...
Nf6 {[%clk 0:03:00.1]} 3. Nc3 {[%clk 0:03:00.9]} 3... Nc6 {[%clk 0:02:59.2]} 4.
Bb5 {[%clk 0:02:58.3]} 4... Nd4 {[%clk 0:02:58.7]} 5. Bc4 {[%clk 0:02:57.3]}
5... Bc5 {[%clk 0:02:58.6]} 6. d3 {[%clk 0:02:55.4]} 6... d6 {[%clk 0:02:37.3]}
7. h3 {[%clk 0:02:55.1]} 7... Be6 {[%clk 0:02:24.7]} 8. Be3 {[%clk 0:02:51.3]}
8... Nxf3+ {[%clk 0:02:23]} 9. Qxf3 {[%clk 0:02:50.7]} 9... Bxe3 {[%clk
0:02:23.2]} 10. Qxe3 {[%clk 0:02:48.8]} 10... O-O {[%clk 0:02:19.8]} 11. O-O
{[%clk 0:02:44.1]} 11... Bxc4 {[%clk 0:02:15.2]} 12. dxc4 {[%clk 0:02:45]} 12...
Qe7 {[%clk 0:02:14.5]} 13. Rad1 {[%clk 0:02:40.3]} 13... b6 {[%clk 0:02:11.2]}
14. Qe2 {[%clk 0:02:33.7]} 14... Qe6 {[%clk 0:02:09.8]} 15. b3 {[%clk
0:02:32.6]} 15... Nd7 {[%clk 0:02:05.6]} 16. Nd5 {[%clk 0:02:32.7]} 16... Rac8
{[%clk 0:02:04.1]} 17. Qg4 {[%clk 0:02:12.9]} 17... Rfe8 {[%clk 0:01:50.1]} 18.
Rfe1 {[%clk 0:02:06.1]} 18... Qxg4 {[%clk 0:01:49]} 19. hxg4 {[%clk 0:02:07]}
19... Nc5 {[%clk 0:01:46.5]} 20. f3 {[%clk 0:02:05.3]} 20... Ne6 {[%clk
0:01:46.1]} 21. Kf2 {[%clk 0:02:04.2]} 21... f6 {[%clk 0:01:44.9]} 22. a4 {[%clk
0:02:01.1]} 22... a5 {[%clk 0:01:42.4]} 23. g3 {[%clk 0:02:00.7]} 23... Kf7
{[%clk 0:01:37.3]} 24. Rh1 {[%clk 0:02:00.1]} 24... h6 {[%clk 0:01:36.8]} 25.
Ne3 {[%clk 0:01:59.2]} 25... Nd4 {[%clk 0:01:34.7]} 26. Rd2 {[%clk 0:01:57.5]}
26... Rh8 {[%clk 0:01:33.7]} 27. Nf5 {[%clk 0:01:48.9]} 27... Nxf5 {[%clk
0:01:30.7]} 28. gxf5 {[%clk 0:01:49.8]} 28... Rhd8 {[%clk 0:01:25.6]} 29. Ke3
{[%clk 0:01:49]} 29... Ra8 {[%clk 0:01:25.6]} 30. Rd5 {[%clk 0:01:48.4]} 30...
Re8 {[%clk 0:01:26]} 31. Rd2 {[%clk 0:01:48.9]} 31... Red8 {[%clk 0:01:26.3]}
32. Rd3 {[%clk 0:01:42.5]} 32... Re8 {[%clk 0:01:26.6]} 33. Rh2 {[%clk
0:01:42.4]} 33... Re7 {[%clk 0:01:27]} 34. Rh3 {[%clk 0:01:42.7]} 34... Ree8
{[%clk 0:01:27.7]} 35. Rh4 {[%clk 0:01:43.3]} 35... Re7 {[%clk 0:01:28.4]} 36.
Rh1 {[%clk 0:01:43.9]} 36... Ree8 {[%clk 0:01:29]} 37. Rd2 {[%clk 0:01:44.6]}
37... Re7 {[%clk 0:01:29.4]} 38. Rd5 {[%clk 0:01:42.2]} 38... Ree8 {[%clk
0:01:29.8]} 39. g4 {[%clk 0:01:33.5]} 39... Ra7 {[%clk 0:01:27.4]} 40. c3 {[%clk
0:01:33.1]} 40... Re7 {[%clk 0:01:27]} 41. Rd2 {[%clk 0:01:20.9]} 41... Re8
{[%clk 0:01:27.5]} 42. Rdh2 {[%clk 0:01:21]} 42... Ra6 {[%clk 0:01:23.9]} 43.
Rd2 {[%clk 0:01:21.4]} 43... Ra7 {[%clk 0:01:24]} 44. Rhh2 {[%clk 0:01:22]}
44... Ra6 {[%clk 0:01:24.3]} 45. Rh1 {[%clk 0:01:22.7]} 45... Ra7 {[%clk
0:01:25]} 1/2-1/2

[Event "Early-Titled-Tuesday-Blitz-March-26-2024"]
[Site "Chess.com"]
[Date "2024.03.26"]
[Round "6"]
[White "KNVB"]
[Black "Flaccidmoves"]
[Result "1-0"]
[WhiteElo "2766"]
[BlackElo "2447"]
[TimeControl "180+1"]
[EndTime "9:02:53 PDT"]
[Termination "KNVB won on time"]

1. d4 {[%clk 0:03:00.9]} 1... Nf6 {[%clk 0:03:00.5]} 2. Bf4 {[%clk 0:02:57.5]}
2... g6 {[%clk 0:03:00.7]} 3. e3 {[%clk 0:02:57.2]} 3... Bg7 {[%clk 0:02:59.5]}
4. h3 {[%clk 0:02:57.4]} 4... d6 {[%clk 0:02:59]} 5. Bh2 {[%clk 0:02:57.5]} 5...
O-O {[%clk 0:02:58.9]} 6. c3 {[%clk 0:02:58.4]} 6... Nbd7 {[%clk 0:02:51.5]} 7.
Nf3 {[%clk 0:02:59.3]} 7... b6 {[%clk 0:02:48.2]} 8. Be2 {[%clk 0:03:00.2]} 8...
Bb7 {[%clk 0:02:48]} 9. a4 {[%clk 0:03:01.1]} 9... a6 {[%clk 0:02:47.1]} 10. O-O
{[%clk 0:03:01.2]} 10... Qe8 {[%clk 0:02:37]} 11. c4 {[%clk 0:03:00.8]} 11... e5
{[%clk 0:02:35.7]} 12. Nc3 {[%clk 0:03:01.1]} 12... Qe7 {[%clk 0:02:26]} 13. a5
{[%clk 0:03:01.2]} 13... Rfe8 {[%clk 0:01:57.4]} 14. axb6 {[%clk 0:03:01]} 14...
cxb6 {[%clk 0:01:50.3]} 15. Re1 {[%clk 0:03:01.1]} 15... Rac8 {[%clk 0:01:45.4]}
16. Qa4 {[%clk 0:03:00.8]} 16... Qd8 {[%clk 0:01:18.5]} 17. Qa3 {[%clk
0:02:58.8]} 17... Qc7 {[%clk 0:01:16.9]} 18. Bg3 {[%clk 0:02:58.2]} 18... Nh5
{[%clk 0:01:12.5]} 19. Bh2 {[%clk 0:02:57.6]} 19... f5 {[%clk 0:01:06.5]} 20.
Rad1 {[%clk 0:02:56]} 20... f4 {[%clk 0:00:57]} 21. dxe5 {[%clk 0:02:38.2]}
21... dxe5 {[%clk 0:00:55.4]} 22. Nd5 {[%clk 0:02:38.9]} 22... Bxd5 {[%clk
0:00:40.8]} 23. cxd5 {[%clk 0:02:39.8]} 23... Nc5 {[%clk 0:00:31.8]} 24. d6
{[%clk 0:02:37.8]} 24... Qd7 {[%clk 0:00:32]} 25. exf4 {[%clk 0:02:36.3]} 25...
Nxf4 {[%clk 0:00:29.7]} 26. Bc4+ {[%clk 0:02:33.7]} 26... Kh8 {[%clk 0:00:29.1]}
27. Ng5 {[%clk 0:02:34.4]} 27... Rf8 {[%clk 0:00:26.6]} 28. b4 {[%clk
0:02:25.4]} 28... Na4 {[%clk 0:00:14.8]} 29. Bxa6 {[%clk 0:01:50.7]} 29... b5
{[%clk 0:00:05.7]} 30. Bxc8 {[%clk 0:01:49.8]} 1-0

[Event "Early-Titled-Tuesday-Blitz-March-26-2024"]
[Site "Chess.com"]
[Date "2024.03.26"]
[Round "6"]
[White "MarijaKuznecova"]
[Black "Yuruultei"]
[Result "1-0"]
[WhiteElo "2410"]
[BlackElo "2226"]
[TimeControl "180+1"]
[EndTime "9:02:53 PDT"]
[Termination "MarijaKuznecova won by resignation"]

1. e4 {[%clk 0:03:00.9]} 1... c5 {[%clk 0:02:56.5]} 2. Nf3 {[%clk 0:03:01]} 2...
e6 {[%clk 0:02:56.8]} 3. d4 {[%clk 0:03:01.2]} 3... cxd4 {[%clk 0:02:57.7]} 4.
Nxd4 {[%clk 0:03:01.9]} 4... Nc6 {[%clk 0:02:58.3]} 5. Nc3 {[%clk 0:03:01.5]}
5... a6 {[%clk 0:02:58.4]} 6. g3 {[%clk 0:03:00.5]} 6... Nf6 {[%clk 0:02:57.8]}
7. Bg2 {[%clk 0:03:01]} 7... d6 {[%clk 0:02:56.4]} 8. O-O {[%clk 0:03:01]} 8...
Be7 {[%clk 0:02:57]} 9. Be3 {[%clk 0:03:00.3]} 9... O-O {[%clk 0:02:56.8]} 10.
f4 {[%clk 0:03:00.8]} 10... Bd7 {[%clk 0:02:55.9]} 11. h3 {[%clk 0:02:59.1]}
11... Nxd4 {[%clk 0:02:55.9]} 12. Bxd4 {[%clk 0:03:00]} 12... Bc6 {[%clk
0:02:56.5]} 13. g4 {[%clk 0:02:58.1]} 13... Qc7 {[%clk 0:02:51.7]} 14. f5 {[%clk
0:02:52.2]} 14... exf5 {[%clk 0:02:32.4]} 15. gxf5 {[%clk 0:02:44.1]} 15... b5
{[%clk 0:02:31.6]} 16. Nd5 {[%clk 0:02:31.5]} 16... Bxd5 {[%clk 0:02:05.3]} 17.
exd5 {[%clk 0:02:32.4]} 17... Nd7 {[%clk 0:02:05.2]} 18. Qd2 {[%clk 0:01:37.1]}
18... Bf6 {[%clk 0:02:00.2]} 19. Rae1 {[%clk 0:01:25]} 19... Rae8 {[%clk
0:01:53.1]} 20. Bxf6 {[%clk 0:01:19.9]} 20... Nxf6 {[%clk 0:01:52]} 21. c3
{[%clk 0:01:18.4]} 21... Re7 {[%clk 0:01:48.3]} 22. a4 {[%clk 0:00:57.2]} 22...
bxa4 {[%clk 0:01:41.7]} 23. Qd4 {[%clk 0:00:56.9]} 23... Rfe8 {[%clk 0:01:39.8]}
24. Rxe7 {[%clk 0:00:55.8]} 24... Rxe7 {[%clk 0:01:37.4]} 25. Ra1 {[%clk
0:00:53.1]} 25... Qb7 {[%clk 0:01:32.7]} 26. Rxa4 {[%clk 0:00:46.5]} 26... Qxb2
{[%clk 0:01:31.8]} 27. Rxa6 {[%clk 0:00:44.8]} 27... Re1+ {[%clk 0:01:30.4]} 28.
Kh2 {[%clk 0:00:44.5]} 28... Re2 {[%clk 0:01:30.8]} 29. Ra8+ {[%clk 0:00:42.7]}
29... Ne8 {[%clk 0:01:31.1]} 30. Qg4 {[%clk 0:00:36.1]} 30... Qxc3 {[%clk
0:01:30.6]} 31. Qxe2 {[%clk 0:00:35.4]} 1-0